Cogmind - Beta 14 @@@ ROGUE MODE // 2024.08.07 @ 16:40:47 Player: J1ang-5h1 Result: Destroyed by X3-MSE(R) with Subdweller Laser Performance ------------- Evolutions (0) 0 Regions Visited (2) 400 Robots Destroyed (32) 160 Value Destroyed (766) 766 Prototype IDs (7) 140 Alien Tech Used (0) 0 Bonus (0) 0 TOTAL SCORE: 1466 Bonus ------- None Cogmind --------- Core Integrity 0/250 Matter 235/300 Energy 160/160 System Corruption 0% Temperature Cool (6) Movement Treading (240) Ox1 Location -10/Subcaves Parts ------- > --- POWER (1) -------- Light Nuclear Core > --- PROPULSION (2) --- Light Treads Light Treads > --- UTILITY (2) ------ Heat Sink High-capacity Storage Unit > --- WEAPON (2) ------- Small Laser Assault Rifle > --- INVENTORY (20) --- Ion Engine Light Treads Aluminum Leg Aluminum Leg Wheel Heat Sink Heat Sink Heat Sink Heat Sink Heat Sink Heat Sink Heat Sink Heat Sink Medium Matter Pod (100) ECM Suite Power Shielding Tractor Beam EM Pulse Gun Grenade Launcher Mining Claw Peak State ------------ > --- POWER ------------ Light Nuclear Core > --- PROPULSION ------- Light Treads Light Treads > --- UTILITY ---------- Heat Sink High-capacity Storage Unit > --- WEAPON ----------- Small Laser Assault Rifle > --- INVENTORY -------- Ion Engine Light Treads Aluminum Leg Aluminum Leg Wheel Heat Sink Heat Sink Heat Sink Heat Sink Heat Sink Heat Sink Heat Sink Heat Sink Medium Matter Pod ECM Suite Power Shielding Tractor Beam EM Pulse Gun Grenade Launcher Mining Claw [Rating: 11] Favorites ----------- Power Light Ion Engine Engine Light Ion Engine Power Core Light Nuclear Core Propulsion Light Treads Treads Light Treads Leg Aluminum Leg Wheel Wheel Utility High-capacity Storage Unit Device ECM Suite Storage High-capacity Storage Unit Weapon EM Pulse Gun Energy Gun EM Pulse Gun Ballistic Gun Assault Rifle Launcher Grenade Launcher Slashing Weapon Mining Claw Build | -11 -10 -10 ------- Run | Yrd Mat Sub Slots Evolved . | . . . Power . | . . . Propulsion . | . . . Utility . | . . . Weapon . | . . . Parts Attached 21 | 1 19 1 Power 1 | . 1 . Engine . | . . . Core 1 | . 1 . Reactor . | . . . Propulsion 4 | . 4 . Treads 2 | . 2 . Leg . | . . . Wheel 2 | . 2 . Hover . | . . . Flight . | . . . Utility 4 | . 4 . Device 2 | . 2 . Storage 2 | . 2 . Processor . | . . . Hackware . | . . . Protection . | . . . Artifact . | . . . Weapon 12 | 1 10 1 Energy Gun 6 | 1 4 1 Energy Cannon . | . . . Ballistic Gun 2 | . 2 . Ballistic Cannon . | . . . Launcher 3 | . 3 . Special Weapon . | . . . Impact Weapon . | . . . Slashing Weapon 1 | . 1 . Piercing Weapon . | . . . Special Melee Weapon . | . . . Unidentified Prototypes . | . . . Parts Lost 4 | . 4 . Power . | . . . Propulsion 2 | . 2 . Utility . | . . . Weapon 2 | . 2 . Highest Loss Streak 3 | . 3 . To Critical Strikes . | . . . Average Slot Usage (%) 96 | . 96 100 Engine 11 | . 12 . Core 2 | . 1 14 Treads 8 | . 6 28 Leg 5 | . 6 . Wheel 13 | . 14 . Device 10 | . 9 14 Storage 17 | . 17 14 Energy Gun 17 | . 18 14 Ballistic Gun 7 | . 6 14 Peak Build Rating 11 | 6 11 11 Average Rating 8 | 6 7 11 On Entrance 7 | 6 6 11 Naked Turns . | . . . Heaviest Build 67 | 12 67 49 Greatest Support 40 | 20 40 40 Greatest Overweight (x) 3 | . 3 1 Average Overweight (x) . | . 1 1 Largest Inventory Capacity 20 | 8 20 20 Average Capacity 17 | 8 18 20 Most Carried 20 | 6 20 20 Average Carried 12 | 6 11 20 Final Capacity 20 | 8 20 20 Final Carried 20 | 6 20 20 Class Distribution -------------------- 100% | Mutant Dominant Class ---------------- Mutant | -10/Materials Mutant | -10/Subcaves Resources | -11 -10 -10 ----------- Run | Yrd Mat Sub Matter Collected 570 | 210 279 81 Remotely . | . . . Salvage Created 1049 | 233 749 67 Parts 72 | 22 46 4 Haulers Intercepted 1 | . 1 . Recyclers Shooed 3 | . 3 . Parts Field Recycled . | . . . Retrieved Matter . | . . . Parts Self-Destructed 4 | . . 4 Prevented . | . . . Kills | -11 -10 -10 ------- Run | Yrd Mat Sub Combat Hostiles Destroyed 19 | . 17 2 Guns 12 | . 10 2 AOE 7 | . 7 . Classes Destroyed 8 | 3 3 2 Worker 3 | 2 1 . Tunneler 5 | 5 . . Hauler 1 | . 1 . Recycler 1 | 1 . . Watcher 3 | . 3 . Swarmer 1 | . . 1 Grunt 17 | . 17 . Sentry 1 | . . 1 Best Kill Streak 6 | 3 6 2 Combat Bots Only 5 | . 5 2 Max Kills in Single Turn 2 | 1 2 1 Gunslinging . | . . . Exploded 2 | . 2 . Melee . | . . . Uniques/NPCs Destroyed . | . . . Combat | -11 -10 -10 -------- Run | Yrd Mat Sub Hostile Shots Fired 90 | . 64 26 Missed 30 | . 22 8 Damage Taken 793 | 4 537 252 Core 257 | 2 158 97 Absorbed by Shields . | . . . Regen/Repaired (Parts) 32 | . 32 . Core Remaining (%) 99 | 99 . . Volleys Fired 89 | 14 63 12 Largest 2 | 2 2 2 Hottest 80 | 80 80 60 Shots Fired 165 | 28 113 24 Gun 157 | 28 105 24 Cannon . | . . . Launcher 8 | . 8 . Special . | . . . Kinetic 41 | . 29 12 Thermal 41 | . 29 12 Explosive 8 | . 8 . Electromagnetic 75 | 28 47 . Robot Hit Streak 9 | 6 6 9 Robot Miss Streak 6 | 2 6 2 Penetration Max . | . . . Secondary Targets . | . . . Shots Hit Robots 96 | 15 65 16 Core Hits 55 | 8 43 4 Critical Kills . | . . . Critical Parts Destroyed . | . . . Critical Strikes 1 | 1 . . Corrupt 1 | 1 . . Melee Attacks 15 | . 15 . Impact . | . . . Slashing 15 | . 15 . Piercing . | . . . Sneak Attacks . | . . . Combat Hostiles . | . . . Follow-up Attacks . | . . . Damage Inflicted 1734 | 275 1269 190 Guns 1137 | 232 715 190 Cannons . | . . . Explosions 597 | 43 554 . Melee . | . . . Ramming . | . . . Kinetic 216 | . 122 94 Thermal 443 | 43 304 96 Explosive 507 | . 507 . Electromagnetic 568 | 232 336 . Impact . | . . . Slashing . | . . . Piercing . | . . . Highest Corruption . | . . . Average Corruption . | . . . Corruption Purged . | . . . Corruption Blocked . | . . . Overload Shots . | . . . Overflow Damage . | . . . Projectiles . | . . . Explosions . | . . . Melee . | . . . Knockbacks . | . . . Impact . | . . . Kinetic . | . . . Secondary . | . . . Self-Inflicted Damage 36 | 5 31 . Shots 3 | 1 2 . Rammed . | . . . Targets Rammed . | . . . Kicked . | . . . Crushed . | . . . Highest Temperature 120 | 90 120 . Average Temperature 33 | 33 33 . Received Heat Transfer 330 | . 279 51 Siege Activations . | . . . Robots Corrupted . | . . . Combat Hostiles . | . . . Parts Fried 1 | 1 . . Impact Corruptions . | . . . Robots Melted . | . . . Combat Hostiles . | . . . Parts Melted . | . . . Heat Transferred 850 | 50 575 225 Parts Sabotaged . | . . . Parts Stolen . | . . . Parts Stripped . | . . . Power Chain Reactions 2 | 1 1 . Alert | -11 -10 -10 ------- Run | Yrd Mat Sub Peak Influence 251 | 40 251 . Initial 26 | . 26 . Average 128 | 19 136 . Maximum Alert Level 1 | . 1 . Low Security (%) 75 | 100 73 . Level 1 24 | . 26 . Level 2 . | . . . Level 3 . | . . . Level 4 . | . . . Level 5 . | . . . High Security . | . . . Max Security . | . . . Squads Dispatched 5 | . 5 . Investigation 3 | . 3 . Extermination . | . . . Reinforcement 2 | . 2 . Assault . | . . . Garrison . | . . . Intercept . | . . . Searches Triggered . | . . . Construction Impeded . | . . . Haulers Reinforced . | . . . Active Scanning Responses . | . . . Cargo Convoy Interrupts . | . . . Stealth | -11 -10 -10 --------- Run | Yrd Mat Sub Distress Signals . | . . . Communications Jammed . | . . . Distress Signals . | . . . Times Spotted 30 | . 26 4 Peak Tracking Total 4 | . 4 2 Tactical Retreats 2 | . 2 . Traps | -11 -10 -10 ------- Run | Yrd Mat Sub Traps Triggered 2 | . 2 . Indirectly . | . . . Trap Hack Attempts . | . . . Triggered . | . . . Disarmed . | . . . Reprogrammed . | . . . Reused . | . . . Traps Extracted . | . . . Installed . | . . . Triggered . | . . . Machines | -11 -10 -10 ---------- Run | Yrd Mat Sub Machines Disabled . | . . . Max in Single Turn . | . . . Machines Repaired . | . . . Machines Dismantled . | . . . Machines Sabotaged . | . . . Overloaded Fab Kills . | . . . Hacking | -11 -10 -10 --------- Run | Yrd Mat Sub Machines Accessed 8 | . 8 . Terminals 6 | . 6 . Fabricators . | . . . Repair Stations 1 | . 1 . Recycling Units 1 | . 1 . Scanalyzers . | . . . Garrison Access . | . . . Total Hacks 21 | . 21 . Successful 14 | . 14 . Failed 7 | . 7 . Catastrophic . | . . . Database Lockouts . | . . . Manual 5 | . 5 . Terminals 16 | . 16 . Fabricators . | . . . Repair Stations 2 | . 2 . Recycling Units 3 | . 3 . Scanalyzers . | . . . Garrison Access . | . . . Terminal Hacks 7 | . 7 . Prototype ID Bank 5 | . 5 . Locate Traps 1 | . 1 . Zone Layout 1 | . 1 . Fabricator Hacks . | . . . Repair Station Hacks 2 | . 2 . Scan Component 1 | . 1 . Repair 1 | . 1 . Recycling Unit Hacks 1 | . 1 . Report Inventory 1 | . 1 . Scanalyzer . | . . . Garrison Access Hacks . | . . . Unauthorized Hacks 4 | . 4 . Terminals 2 | . 2 . Botnet 2 | . 2 . Fabricators . | . . . Repair Stations . | . . . Recycling Units 2 | . 2 . Mask 1 | . 1 . Tunnel 1 | . 1 . Scanalyzers . | . . . Garrison Access . | . . . Data Cores Recovered . | . . . Used . | . . . Hacking Detections 7 | . 7 . Full Trace Events . | . . . Feedback Events . | . . . Feedback Blocked . | . . . Robot Schematics Acquired . | . . . Robots Built . | . . . Authchips . | . . . Time . | . . . Total Robot Build Rating . | . . . Part Schematics Acquired . | . . . Parts Built . | . . . Authchips . | . . . Time . | . . . Total Part Build Rating . | . . . Parts Repaired 1 | . 1 . Time 38 | . 38 . Parts Recycled . | . . . Recycled Matter . | . . . Retrieved Matter . | . . . Retrieved Components . | . . . Parts Scanalyzed . | . . . Part Schematics Acquired . | . . . Parts Damaged . | . . . Bothacking | -11 -10 -10 ------------ Run | Yrd Mat Sub Used RIF Installer . | . . . Robots Hacked . | . . . Non-combat . | . . . Combat . | . . . Robot Hacks Applied . | . . . Relay Couplers Released . | . . . Fabnet Peak Effective % . | . . . Robots Rewired . | . . . Allies Hacked . | . . . Hacks Repelled . | . . . Allies | -11 -10 -10 -------- Run | Yrd Mat Sub Total Allies . | . . . Largest Group . | . . . Highest-Rated Group . | . . . Highest-Rated Ally . | . . . Total Orders . | . . . Ally Attacks . | . . . Total Damage . | . . . Kills . | . . . Allies Corrupted . | . . . Allies Melted . | . . . Intel | -11 -10 -10 ------- Run | Yrd Mat Sub Robot Analysis Total . | . . . Derelict Logs Recovered 1 | . . 1 Drone Launches . | . . . Drone Recoveries . | . . . Exploration | -11 -10 -10 ------------- Run | Yrd Mat Sub Turns Passed 2052 | 131 1742 179 Spaces Moved 1105 | 61 986 58 Core . | . . . Treads 202 | . 144 58 Legs 271 | 61 210 . Wheels 632 | . 632 . Hover . | . . . Flight . | . . . Fastest Speed 105 | 120 105 240 Average Speed 144 | 120 140 240 Slowest Speed 330 | 120 330 240 Overloaded Moves . | . . . Propulsion Burnouts . | . . . Robots Hopped . | . . . Cave-ins Triggered . | . . . Exploration Rate (%) 35 | 3 97 5 Regions Visited 2 Branch Regions 1 Pre-discovered Areas 1 | . 1 . Known Exits Taken . | . . . Unknown Exits Taken 2 | 1 1 . Scrap Searched . | . . . Spaces Dug . | . . . Terrain Destroyed 66 | . 66 . Melee . | . . . Projectile . | . . . AOE 66 | . 66 . Terrain Rammed . | . . . Walls Destroyed . | . . . Machines Disabled . | . . . Actions | -11 -10 -10 --------- Run | Yrd Mat Sub Total 1361 | 90 1197 74 Wait 109 | 15 91 3 Move 1103 | 60 985 58 Hop . | . . . Pick Up 21 | . 21 . Fast Attach 1 | . 1 . Attach 5 | . 5 . Detach . | . . . Swap 15 | 1 13 1 Drop 3 | . 3 . Fire 89 | 14 63 12 Melee 15 | . 15 . Ram . | . . . Kick . | . . . Crush . | . . . Escape Stasis . | . . . Rewire . | . . . Trap . | . . . Miscellaneous . | . . . Route ------- -11/Scrapyard -10/Materials (discovered 6 exits: [*Mat x3] / [*Min x2] / [*Sub]) -10/Subcaves (discovered 1 exit: Rec) History --------- Turn | Location | Event 12 | -11/Scrapyard | Discovered new exit (range 3) 132 | -11/Scrapyard | Entered Materials 135 | -10/Materials | Discovered new exit (range 10) 309 | -10/Materials | Build established: Mutant 394 | -10/Materials | Discovered new exit (range 16) 524 | -10/Materials | Discovered new exit (range 12) 854 | -10/Materials | Discovered new exit (range 11) 1376 | -10/Materials | Discovered new exit (range 13) 1454 | -10/Materials | Core integrity fell below 50% 1493 | -10/Materials | Lost 3 parts (2n1w) 1643 | -10/Materials | Repaired Lgt. Nuclear Core 1859 | -10/Materials | Discovered new exit (range 3) 1874 | -10/Materials | Entered Subcaves 1959 | -10/Subcaves | Identified exit to Recycling 2037 | -10/Subcaves | Core integrity fell below 20% 2053 | -10/Subcaves | Destroyed by X3-MSE(R) with Subdweller Laser Last Messages --------------- 01867_ U-05 Engineer builds a Wall. 01869_ U-05 Engineer lays Concrete. 01869_ U-05 Engineer builds a Wall. LOCATION=UNKNOWN AMBIENT_HEAT=-10 GOAL=ESCAPE 01920_ Destroyed Lgt. Ion Engine. 01926_ Destroyed Flight Unit. 01929_ S-10 Pest destroyed. 01940_ Subatomizers dissect the Flight Unit. 01941_ Flight Unit fries itself beyond repair. 01944_ Y-45 Defender destroyed. 01948_ Lgt. Treads fries itself beyond repair. 01952_ Acquired 67 matter. 01957_ Heat Sink fries itself beyond repair. 01957_ Hvy. Assault Rifle fries itself beyond repair. 01959_ Acquired derelict log, extracted data. Loading 1 Recycling entrance... 01995_ Acquired 14 matter. Map ----- +----------------------------------------------------+ | ?????????????????????????????????????????????????? | | ?????????????????????????????????????????????????? | | ?????????????????????????????????????????????????? | | ?????????????????????????????????????????????????? | | ?????????????????????????????????????????????????? | | ?????????????????????????????????????????????????? | | ?????????????????????????????????????????????????? | | ?????????????????????????????????????????????????? | | ?????????????????????????????????????????????????? | | ?????????????????????????????????????????????????? | | ?????????????????????????????????????????????????? | | ?????????????????????????????????????????????????? | | ?????????????????????????????????????????????????? | | ######???????????????????????????????????????????? | | #???????????????????????????????????????????? | | #????????????????????????##? ???????????????? | | #???????????????????????? ????????????????? | | #????????????????????????"""????????????????? | | ####???????????????????? #????????????????? | | ##### # ######??????????????? ##???##??????????? | | #?#### # #??????????????? ###""#??????????? | | ### ##?????????????? ""??????????? | | # # #????????????? ""??????????? | | #### #????????????? ?????????????? | | # ###??# #???????#####? # #???????????????? | | ### #???### # ######## @## #???????????????? | | ?# ### # # ##### R #???????????????? | | ?## ### #### ####R ## #??????????????? | | ??# # # ##??####??## #???????????????????? | | # # ####### ##??????????? ??????????????????? | | #?????###???????????? ?????????????????? | | # # ###???????????????????? # # ????????????????? | | ###?##???????????????????????###? ??????????????? | | ?????????????????????????????????? ?????????????? | | ??????????????????????????????????? ????????????? | | ???????????????????????????????????? ??????????? | | ????????????????????????????????????? ?????????? | | ?????????????????????????????????????? ??????????? | | ?????????????????????????????????????????????????? | | ?????????????????????????????????????????????????? | | ?????????????????????????????????????????????????? | | ?????????????????????????????????????????????????? | | ?????????????????????????????????????????????????? | | ?????????????????????????????????????????????????? | | ?????????????????????????????????????????????????? | | ?????????????????????????????????????????????????? | | ?????????????????????????????????????????????????? | | ?????????????????????????????????????????????????? | | ?????????????????????????????????????????????????? | | ?????????????????????????????????????????????????? | +----------------------------------------------------+ Best States ------------- Heat Dissipation 35 Energy Generation 14 Energy Capacity 160 Matter Stores 300 Matter Capacity 300 Sight Range 16 Terrain Scan Density 10 ECM Strength 1 Evasion (%) 55 Recoil Reduction 2 Item Schematics ----------------- None Robot Schematics ------------------ None Fabricated ------------ Nothing Alien Tech Used ----------------- None Achievements -------------- None Challenges ------------ None Game ------ Seed CoolingDynamicSaw Manual? 0 Play Time 00:16:58 Cumulative 231.2 hours Start 2024.08.07 @ 16:24:43 End 2024.08.07 @ 16:40:47 Sessions 1 Manual Loads 0 Difficulty Rogue Special Mode None Game No. 171 Rogue 161 Adventurer 0 Explorer 10 Win Type - Total 3 Types 3/0/0/0/0/0/0/0/0 Lore% 41 Gallery% 66 Achievement% 53 Wizard Run 0 Options --------- Layout 1 ASCII 0 Keyboard 0 Movement Arrows Keybinds 1 Fullscreen 1 Font 24/Smallcaps Map View 50x35 Zoom Use 0% Tactical HUD 1 Map Filters NONE Filters NONE Steam 1 RUN: 1d128f06-2a04-4a30-b2a0-8eab65b02223